[Event "Titled Tuesday Blitz June 28 Early 2022"]
[White "Dobrikov, Marco"]
[Black "Silva Lucena, Cristian"]
[WhiteFideId "12950378"]
[BlackFideId "2232588"]
[WhiteElo "2101"]
[BlackElo "2223"]
[Result "1-0"]
[Round "03"]
[TimeControl "180+1"]
[Date "2022.06.28"]
[WhiteClock "0:02:02"]
[BlackClock "0:00:19"]

1. e4 {[%clk 0:02:59]}  c5 {[%clk 0:02:59]} 2. Nf3 {[%clk 0:03:00]}  d6 {[%clk 0:02:59]} 3. d4 {[%clk 0:03:01]}  cxd4 {[%clk 0:02:59]} 4. Nxd4 {[%clk 0:03:02]}  Nf6 {[%clk 0:02:59]} 5. Nc3 {[%clk 0:03:02]}  a6 {[%clk 0:02:59]} 6. h3 {[%clk 0:03:03]}  e5 {[%clk 0:02:58]} 7. Nde2 {[%clk 0:03:04]}  h5 {[%clk 0:02:58]} 8. Bg5 {[%clk 0:03:04]}  Be6 {[%clk 0:02:54]} 9. Bxf6 {[%clk 0:03:05]}  Qxf6 {[%clk 0:02:55]} 10. Nd5 {[%clk 0:03:06]}  Qd8 {[%clk 0:02:53]} 11. Qd3 {[%clk 0:03:06]}  g6 {[%clk 0:02:51]} 12. O-O-O {[%clk 0:03:06]}  Nc6 {[%clk 0:02:49]} 13. Kb1 {[%clk 0:03:06]}  Rc8 {[%clk 0:02:47]} 14. Nec3 {[%clk 0:02:56]}  Bh6 {[%clk 0:02:39]} 15. h4 {[%clk 0:02:56]}  O-O {[%clk 0:02:33]} 16. f3 {[%clk 0:02:55]}  b5 {[%clk 0:02:31]} 17. Be2 {[%clk 0:02:52]}  b4 {[%clk 0:02:11]} 18. Na4 {[%clk 0:02:53]}  Nd4 {[%clk 0:01:48]} 19. c4 {[%clk 0:02:53]}  bxc3 {[%clk 0:01:42]} 20. Naxc3 {[%clk 0:02:52]}  Qa5 {[%clk 0:01:31]} 21. Qxa6 {[%clk 0:02:49]}  Qxa6 {[%clk 0:01:23]} 22. Bxa6 {[%clk 0:02:48]}  Ra8 {[%clk 0:01:23]} 23. Bc4 {[%clk 0:02:48]}  Rfb8 {[%clk 0:01:18]} 24. b3 {[%clk 0:02:44]}  Ra7 {[%clk 0:01:13]} 25. Kb2 {[%clk 0:02:42]}  Kf8 {[%clk 0:01:08]} 26. a4 {[%clk 0:02:32]}  Bg7 {[%clk 0:00:58]} 27. Ka3 {[%clk 0:02:31]}  Nc2+ {[%clk 0:00:54]} 28. Kb2 {[%clk 0:02:31]}  Nd4 {[%clk 0:00:53]} 29. Nb5 {[%clk 0:02:30]}  Nxb5 {[%clk 0:00:53]} 30. Bxb5 {[%clk 0:02:31]}  Bxd5 {[%clk 0:00:48]} 31. Rxd5 {[%clk 0:02:30]}  Ke7 {[%clk 0:00:47]} 32. Rhd1 {[%clk 0:02:30]}  Rb6 {[%clk 0:00:47]} 33. b4 {[%clk 0:02:29]}  Rab7 {[%clk 0:00:45]} 34. Rc1 {[%clk 0:02:16]}  Bh6 {[%clk 0:00:44]} 35. Rc8 {[%clk 0:02:15]}  Be3 {[%clk 0:00:43]} 36. Kb3 {[%clk 0:02:15]}  Bd4 {[%clk 0:00:41]} 37. Rc6 {[%clk 0:02:14]}  Rxc6 {[%clk 0:00:37]} 38. Bxc6 {[%clk 0:02:15]}  Ra7 {[%clk 0:00:35]} 39. a5 {[%clk 0:02:15]}  f5 {[%clk 0:00:33]} 40. Rb5 {[%clk 0:02:14]}  fxe4 {[%clk 0:00:31]} 41. Bxe4 {[%clk 0:02:13]}  Kf6 {[%clk 0:00:29]} 42. Rd5 {[%clk 0:02:08]}  Ra6 {[%clk 0:00:26]} 43. Ka4 {[%clk 0:02:04]}  Bc3 {[%clk 0:00:24]} 44. Rd3 {[%clk 0:02:03]}  Be1 {[%clk 0:00:24]} 45. Rd1 {[%clk 0:02:03]}  Bc3 {[%clk 0:00:22]} 46. Rc1 {[%clk 0:02:03]}  Bd2 {[%clk 0:00:22]} 47. Rc2 {[%clk 0:02:03]}  Be1 {[%clk 0:00:22]} 48. Bd3 {[%clk 0:02:03]}  Ra7 {[%clk 0:00:20]} 49. a6 {[%clk 0:02:02]}  d5 {[%clk 0:00:20]} 50. b5 {[%clk 0:02:02]}  Bf2 {[%clk 0:00:19]} 51. Rxf2 {[%clk 0:02:02]} 1-0


[Site "https://www.chess.com"]

[Event "Titled Tuesday Blitz June 28 Early 2022"]
[White "Donatti, Alvaro"]
[Black "Di Nicolantonio, Lucas"]
[WhiteFideId "3000303"]
[BlackFideId "680460"]
[WhiteElo "2138"]
[BlackElo "2381"]
[Result "0-1"]
[Round "03"]
[TimeControl "180+1"]
[Date "2022.06.28"]
[WhiteClock "0:00:05"]
[BlackClock "0:00:15"]

1. e4 {[%clk 0:02:57]}  c5 {[%clk 0:02:55]} 2. Nf3 {[%clk 0:02:56]}  e6 {[%clk 0:02:55]} 3. d4 {[%clk 0:02:54]}  cxd4 {[%clk 0:02:56]} 4. Nxd4 {[%clk 0:02:54]}  a6 {[%clk 0:02:57]} 5. g3 {[%clk 0:02:52]}  b5 {[%clk 0:02:51]} 6. Bg2 {[%clk 0:02:51]}  Bb7 {[%clk 0:02:52]} 7. O-O {[%clk 0:02:50]}  Ne7 {[%clk 0:02:48]} 8. Be3 {[%clk 0:02:47]}  Nbc6 {[%clk 0:02:46]} 9. a3 {[%clk 0:02:44]}  Ng6 {[%clk 0:02:44]} 10. Nc3 {[%clk 0:02:44]}  Rc8 {[%clk 0:02:42]} 11. Qe2 {[%clk 0:02:37]}  Be7 {[%clk 0:02:38]} 12. Rad1 {[%clk 0:02:36]}  O-O {[%clk 0:02:38]} 13. f4 {[%clk 0:02:35]}  Nxd4 {[%clk 0:02:24]} 14. Bxd4 {[%clk 0:02:34]}  f5 {[%clk 0:02:21]} 15. exf5 {[%clk 0:02:18]}  Bxg2 {[%clk 0:02:21]} 16. Kxg2 {[%clk 0:02:18]}  Rxf5 {[%clk 0:02:19]} 17. Ne4 {[%clk 0:02:15]}  Qc7 {[%clk 0:02:15]} 18. c3 {[%clk 0:02:10]}  Rcf8 {[%clk 0:02:04]} 19. Kg1 {[%clk 0:01:53]}  h5 {[%clk 0:02:00]} 20. b4 {[%clk 0:01:32]}  h4 {[%clk 0:01:57]} 21. Qg4 {[%clk 0:01:24]}  Kh7 {[%clk 0:01:35]} 22. Ng5+ {[%clk 0:00:58]}  Bxg5 {[%clk 0:01:31]} 23. fxg5 {[%clk 0:00:57]}  Kg8 {[%clk 0:00:50]} 24. Rxf5 {[%clk 0:00:48]}  Rxf5 {[%clk 0:00:50]} 25. gxh4 {[%clk 0:00:44]}  Rf4 {[%clk 0:00:41]} 26. Qg3 {[%clk 0:00:41]}  e5 {[%clk 0:00:42]} 27. Be3 {[%clk 0:00:36]}  Rxh4 {[%clk 0:00:42]} 28. Qf3 {[%clk 0:00:18]}  e4 {[%clk 0:00:34]} 29. Qf2 {[%clk 0:00:17]}  Rg4+ {[%clk 0:00:31]} 30. Kh1 {[%clk 0:00:16]}  Nh4 {[%clk 0:00:31]} 31. Rf1 {[%clk 0:00:12]}  Nf3 {[%clk 0:00:28]} 32. Qc2 {[%clk 0:00:11]}  Rh4 {[%clk 0:00:24]} 33. Bg1 {[%clk 0:00:09]}  Qf4 {[%clk 0:00:22]} 34. Qf2 {[%clk 0:00:06]}  d5 {[%clk 0:00:15]} 35. Qc5 {[%clk 0:00:05]}  Rxh2+ {[%clk 0:00:15]} 0-1


[Site "https://www.chess.com"]

[Event "Titled Tuesday Blitz June 28 Early 2022"]
[White "Dubov, Daniil"]
[Black "Orlov, Georgi"]
[WhiteFideId "24126055"]
[BlackFideId "2011271"]
[WhiteElo "2791"]
[BlackElo "2523"]
[Result "1-0"]
[Round "03"]
[TimeControl "180+1"]
[Date "2022.06.28"]
[WhiteClock "0:00:46"]
[BlackClock "0:00:04"]

1. e4 {[%clk 0:03:00]}  e6 {[%clk 0:02:58]} 2. d4 {[%clk 0:03:00]}  d5 {[%clk 0:02:58]} 3. e5 {[%clk 0:03:01]}  c5 {[%clk 0:02:57]} 4. c3 {[%clk 0:03:01]}  Qb6 {[%clk 0:02:58]} 5. Nf3 {[%clk 0:03:02]}  Bd7 {[%clk 0:02:58]} 6. a3 {[%clk 0:03:01]}  a5 {[%clk 0:02:54]} 7. Bd3 {[%clk 0:02:46]}  Nc6 {[%clk 0:02:45]} 8. dxc5 {[%clk 0:02:45]}  Bxc5 {[%clk 0:02:45]} 9. O-O {[%clk 0:02:45]}  Nge7 {[%clk 0:02:34]} 10. Nbd2 {[%clk 0:02:39]}  Ng6 {[%clk 0:02:33]} 11. Bxg6 {[%clk 0:02:38]}  hxg6 {[%clk 0:02:32]} 12. Nb3 {[%clk 0:02:39]}  Be7 {[%clk 0:02:17]} 13. Re1 {[%clk 0:02:37]}  a4 {[%clk 0:02:15]} 14. Nbd4 {[%clk 0:02:36]}  Na5 {[%clk 0:02:09]} 15. Bg5 {[%clk 0:02:26]}  Bc5 {[%clk 0:02:03]} 16. Rb1 {[%clk 0:02:24]}  Nc4 {[%clk 0:01:58]} 17. Qe2 {[%clk 0:02:24]}  Qa6 {[%clk 0:01:51]} 18. h3 {[%clk 0:02:20]}  Qb6 {[%clk 0:01:34]} 19. h4 {[%clk 0:02:10]}  Qa6 {[%clk 0:01:33]} 20. g3 {[%clk 0:02:10]}  Qb6 {[%clk 0:01:28]} 21. Kg2 {[%clk 0:02:10]}  Bc6 {[%clk 0:01:24]} 22. Bf4 {[%clk 0:02:09]}  Qa6 {[%clk 0:01:20]} 23. Rbd1 {[%clk 0:02:06]}  Na5 {[%clk 0:01:19]} 24. Qc2 {[%clk 0:02:02]}  Nc4 {[%clk 0:01:17]} 25. Bc1 {[%clk 0:02:00]}  Bd7 {[%clk 0:01:13]} 26. Qe2 {[%clk 0:01:56]}  Rc8 {[%clk 0:01:11]} 27. Ng5 {[%clk 0:01:56]}  Be7 {[%clk 0:01:05]} 28. Rh1 {[%clk 0:01:47]}  Qb6 {[%clk 0:00:56]} 29. h5 {[%clk 0:01:42]}  Bxg5 {[%clk 0:00:41]} 30. Bxg5 {[%clk 0:01:39]}  gxh5 {[%clk 0:00:31]} 31. Rxh5 {[%clk 0:01:38]}  Rg8 {[%clk 0:00:29]} 32. Rdh1 {[%clk 0:01:33]}  Bc6 {[%clk 0:00:22]} 33. Bc1 {[%clk 0:01:28]}  Kd7 {[%clk 0:00:20]} 34. Rh7 {[%clk 0:01:25]}  Rcf8 {[%clk 0:00:19]} 35. Re1 {[%clk 0:01:22]}  Kc8 {[%clk 0:00:19]} 36. Qg4 {[%clk 0:01:21]}  Qc7 {[%clk 0:00:15]} 37. Rxg7 {[%clk 0:01:16]}  Rh8 {[%clk 0:00:15]} 38. Bf4 {[%clk 0:00:53]}  Nxb2 {[%clk 0:00:14]} 39. Nxe6 {[%clk 0:00:46]}  d4+ {[%clk 0:00:14]} 40. f3 {[%clk 0:00:47]}  Qd7 {[%clk 0:00:05]} 41. Nxf8 {[%clk 0:00:45]}  Qxg4 {[%clk 0:00:04]} 42. Rxg4 {[%clk 0:00:46]} 1-0


[Site "https://www.chess.com"]

[Event "Titled Tuesday Blitz June 28 Early 2022"]
[White "Dwilewicz, Katarzyna"]
[Black "Prestia, Paris"]
[WhiteFideId "1148486"]
[BlackFideId "30925959"]
[WhiteElo "1907"]
[BlackElo "2555"]
[Result "1-0"]
[Round "03"]
[TimeControl "180+1"]
[Date "2022.06.28"]
[WhiteClock "0:00:57"]
[BlackClock "0:00:06"]

1. e4 {[%clk 0:03:00]}  c5 {[%clk 0:02:59]} 2. Nf3 {[%clk 0:03:00]}  d6 {[%clk 0:02:58]} 3. d4 {[%clk 0:02:57]}  cxd4 {[%clk 0:02:57]} 4. Nxd4 {[%clk 0:02:58]}  Nf6 {[%clk 0:02:57]} 5. Nc3 {[%clk 0:02:58]}  g6 {[%clk 0:02:58]} 6. Bc4 {[%clk 0:02:55]}  Bg7 {[%clk 0:02:58]} 7. O-O {[%clk 0:02:56]}  O-O {[%clk 0:02:59]} 8. h3 {[%clk 0:02:55]}  Nc6 {[%clk 0:02:59]} 9. Re1 {[%clk 0:02:53]}  a6 {[%clk 0:02:52]} 10. Bg5 {[%clk 0:02:50]}  h6 {[%clk 0:02:47]} 11. Bh4 {[%clk 0:02:46]}  Nxd4 {[%clk 0:02:41]} 12. Qxd4 {[%clk 0:02:46]}  b5 {[%clk 0:02:41]} 13. Bb3 {[%clk 0:02:45]}  Bb7 {[%clk 0:02:41]} 14. Qe3 {[%clk 0:02:28]}  g5 {[%clk 0:02:31]} 15. Bg3 {[%clk 0:02:26]}  Rc8 {[%clk 0:02:14]} 16. Rad1 {[%clk 0:02:25]}  Nh5 {[%clk 0:01:31]} 17. Bh2 {[%clk 0:02:22]}  Qc7 {[%clk 0:01:20]} 18. Re2 {[%clk 0:01:48]}  Bxc3 {[%clk 0:01:06]} 19. bxc3 {[%clk 0:01:47]}  Qxc3 {[%clk 0:01:07]} 20. Rd3 {[%clk 0:01:42]}  Qc5 {[%clk 0:00:42]} 21. Qd2 {[%clk 0:01:32]}  Kg7 {[%clk 0:00:18]} 22. h4 {[%clk 0:01:24]}  Nf4 {[%clk 0:00:15]} 23. Bxf4 {[%clk 0:01:21]}  gxf4 {[%clk 0:00:16]} 24. Qxf4 {[%clk 0:01:19]}  Qh5 {[%clk 0:00:15]} 25. Rg3+ {[%clk 0:01:16]}  Kh8 {[%clk 0:00:15]} 26. Rd2 {[%clk 0:01:03]}  a5 {[%clk 0:00:15]} 27. Bd5 {[%clk 0:00:58]}  Bxd5 {[%clk 0:00:05]} 28. Rxd5 {[%clk 0:00:59]}  e5 {[%clk 0:00:05]} 29. Qf6+ {[%clk 0:00:57]}  Kh7 {[%clk 0:00:06]} 30. Qg7# {[%clk 0:00:57]} 1-0


[Site "https://www.chess.com"]

[Event "Titled Tuesday Blitz June 28 Early 2022"]
[White "Estrada Nieto, Julian"]
[Black "Aradhya, Garg"]
[WhiteFideId "5101018"]
[BlackFideId "25006746"]
[WhiteElo "2252"]
[BlackElo "2203"]
[Result "1/2-1/2"]
[Round "03"]
[TimeControl "180+1"]
[Date "2022.06.28"]
[WhiteClock "0:00:21"]
[BlackClock "0:00:44"]

1. e4 {[%clk 0:03:00]}  e5 {[%clk 0:02:59]} 2. Nf3 {[%clk 0:03:01]}  Nc6 {[%clk 0:02:59]} 3. Bb5 {[%clk 0:03:01]}  a6 {[%clk 0:02:58]} 4. Ba4 {[%clk 0:03:01]}  Nf6 {[%clk 0:02:56]} 5. O-O {[%clk 0:03:01]}  b5 {[%clk 0:02:55]} 6. Bb3 {[%clk 0:03:00]}  Bc5 {[%clk 0:02:53]} 7. d3 {[%clk 0:03:00]}  O-O {[%clk 0:02:52]} 8. Be3 {[%clk 0:02:56]}  d6 {[%clk 0:02:51]} 9. h3 {[%clk 0:02:52]}  h6 {[%clk 0:02:38]} 10. Nc3 {[%clk 0:02:50]}  Be6 {[%clk 0:02:34]} 11. Bxe6 {[%clk 0:02:36]}  fxe6 {[%clk 0:02:35]} 12. d4 {[%clk 0:02:37]}  exd4 {[%clk 0:02:33]} 13. Nxd4 {[%clk 0:02:38]}  Nxd4 {[%clk 0:02:33]} 14. Bxd4 {[%clk 0:02:38]}  Nd7 {[%clk 0:02:32]} 15. a4 {[%clk 0:02:28]}  b4 {[%clk 0:02:29]} 16. Ne2 {[%clk 0:02:28]}  Qg5 {[%clk 0:02:28]} 17. Ng3 {[%clk 0:02:23]}  Rf7 {[%clk 0:02:23]} 18. Kh2 {[%clk 0:02:02]}  Raf8 {[%clk 0:02:21]} 19. Bxc5 {[%clk 0:01:49]}  Nxc5 {[%clk 0:02:18]} 20. Qd4 {[%clk 0:01:47]}  a5 {[%clk 0:02:10]} 21. Rae1 {[%clk 0:01:44]}  h5 {[%clk 0:02:09]} 22. e5 {[%clk 0:01:31]}  h4 {[%clk 0:02:06]} 23. Ne4 {[%clk 0:01:27]}  Qf4+ {[%clk 0:01:52]} 24. Kg1 {[%clk 0:01:21]}  Rf5 {[%clk 0:01:47]} 25. exd6 {[%clk 0:01:06]}  Rd5 {[%clk 0:01:45]} 26. Qe3 {[%clk 0:00:56]}  cxd6 {[%clk 0:01:39]} 27. Nxc5 {[%clk 0:00:52]}  Qxe3 {[%clk 0:01:37]} 28. Rxe3 {[%clk 0:00:52]}  Rxc5 {[%clk 0:01:36]} 29. Rxe6 {[%clk 0:00:50]}  Rxc2 {[%clk 0:01:35]} 30. Rxd6 {[%clk 0:00:51]}  Rxb2 {[%clk 0:01:13]} 31. Rd5 {[%clk 0:00:50]}  Ra8 {[%clk 0:01:12]} 32. Re1 {[%clk 0:00:45]}  b3 {[%clk 0:01:10]} 33. Rb5 {[%clk 0:00:44]}  Ra2 {[%clk 0:01:10]} 34. Rxb3 {[%clk 0:00:43]}  Rxa4 {[%clk 0:01:10]} 35. Rb7 {[%clk 0:00:43]}  Rb4 {[%clk 0:01:09]} 36. Rc7 {[%clk 0:00:40]}  Kh7 {[%clk 0:01:07]} 37. Ree7 {[%clk 0:00:39]}  Rg8 {[%clk 0:01:06]} 38. Ra7 {[%clk 0:00:39]}  a4 {[%clk 0:01:06]} 39. Re5 {[%clk 0:00:38]}  Kh6 {[%clk 0:00:58]} 40. Rea5 {[%clk 0:00:37]}  Rf8 {[%clk 0:00:49]} 41. Rxa4 {[%clk 0:00:32]}  Rxa4 {[%clk 0:00:49]} 42. Rxa4 {[%clk 0:00:32]}  g5 {[%clk 0:00:49]} 43. f3 {[%clk 0:00:27]}  Kg6 {[%clk 0:00:48]} 44. Kf2 {[%clk 0:00:27]}  Rb8 {[%clk 0:00:48]} 45. Ra6+ {[%clk 0:00:26]}  Kf5 {[%clk 0:00:47]} 46. Ra5+ {[%clk 0:00:27]}  Kf4 {[%clk 0:00:45]} 47. Ra4+ {[%clk 0:00:27]}  Kf5 {[%clk 0:00:45]} 48. Ra5+ {[%clk 0:00:22]}  Kf4 {[%clk 0:00:44]} 49. Ra4+ {[%clk 0:00:21]}  Kf5 {[%clk 0:00:44]} 50. Ra5+ {[%clk 0:00:21]} 1/2-1/2


[Site "https://www.chess.com"]

[Event "Titled Tuesday Blitz June 28 Early 2022"]
[White "Fecker, Noah"]
[Black "Cruz, Cristhian"]
[WhiteFideId "1334263"]
[BlackFideId "3801969"]
[WhiteElo "2312"]
[BlackElo "2497"]
[Result "1-0"]
[Round "03"]
[TimeControl "180+1"]
[Date "2022.06.28"]
[WhiteClock "0:00:21"]
[BlackClock "0:00:30"]

1. e4 {[%clk 0:02:59]}  c6 {[%clk 0:02:57]} 2. Nf3 {[%clk 0:02:57]}  d5 {[%clk 0:02:57]} 3. Nc3 {[%clk 0:02:57]}  dxe4 {[%clk 0:02:42]} 4. Nxe4 {[%clk 0:02:58]}  Qd5 {[%clk 0:02:42]} 5. Qe2 {[%clk 0:02:51]}  Bg4 {[%clk 0:02:39]} 6. h3 {[%clk 0:02:49]}  Bxf3 {[%clk 0:02:31]} 7. Qxf3 {[%clk 0:02:50]}  Nd7 {[%clk 0:02:31]} 8. g4 {[%clk 0:02:41]}  Ngf6 {[%clk 0:02:28]} 9. Nxf6+ {[%clk 0:02:41]}  Nxf6 {[%clk 0:02:28]} 10. Bg2 {[%clk 0:02:40]}  Qxf3 {[%clk 0:02:22]} 11. Bxf3 {[%clk 0:02:41]}  g6 {[%clk 0:02:20]} 12. d4 {[%clk 0:02:33]}  Bg7 {[%clk 0:02:20]} 13. c3 {[%clk 0:02:34]}  h5 {[%clk 0:02:16]} 14. g5 {[%clk 0:02:32]}  Nd5 {[%clk 0:02:15]} 15. a3 {[%clk 0:02:25]}  O-O-O {[%clk 0:02:12]} 16. O-O {[%clk 0:02:20]}  e5 {[%clk 0:02:09]} 17. dxe5 {[%clk 0:02:20]}  Bxe5 {[%clk 0:02:10]} 18. c4 {[%clk 0:02:17]}  Nc7 {[%clk 0:02:05]} 19. Rb1 {[%clk 0:02:08]}  Ne6 {[%clk 0:02:05]} 20. Be3 {[%clk 0:02:06]}  Bf4 {[%clk 0:02:03]} 21. Bxa7 {[%clk 0:02:03]}  Bxg5 {[%clk 0:01:58]} 22. b4 {[%clk 0:01:59]}  Rd3 {[%clk 0:01:46]} 23. Bg2 {[%clk 0:01:49]}  Rxa3 {[%clk 0:01:45]} 24. Bb6 {[%clk 0:01:46]}  Bd8 {[%clk 0:01:40]} 25. Be3 {[%clk 0:01:43]}  Bg5 {[%clk 0:01:38]} 26. Bb6 {[%clk 0:01:40]}  Nf4 {[%clk 0:01:32]} 27. Ra1 {[%clk 0:01:36]}  Rxa1 {[%clk 0:01:27]} 28. Rxa1 {[%clk 0:01:37]}  Nxg2 {[%clk 0:01:27]} 29. Ra8+ {[%clk 0:01:36]}  Kd7 {[%clk 0:01:26]} 30. Rxh8 {[%clk 0:01:36]}  Nh4 {[%clk 0:01:22]} 31. Rb8 {[%clk 0:01:34]}  Nf3+ {[%clk 0:01:21]} 32. Kg2 {[%clk 0:01:32]}  Ne5 {[%clk 0:01:19]} 33. Rxb7+ {[%clk 0:01:32]}  Ke6 {[%clk 0:01:19]} 34. b5 {[%clk 0:01:23]}  Nxc4 {[%clk 0:01:18]} 35. bxc6 {[%clk 0:01:23]}  Kd6 {[%clk 0:01:14]} 36. Bd4 {[%clk 0:00:47]}  Kxc6 {[%clk 0:01:11]} 37. Rxf7 {[%clk 0:00:47]}  Kd5 {[%clk 0:01:11]} 38. Bc3 {[%clk 0:00:46]}  Bc1 {[%clk 0:01:05]} 39. Rg7 {[%clk 0:00:46]}  g5 {[%clk 0:01:04]} 40. Rh7 {[%clk 0:00:44]}  h4 {[%clk 0:01:04]} 41. Re7 {[%clk 0:00:43]}  Nd6 {[%clk 0:01:02]} 42. Kf3 {[%clk 0:00:39]}  Nb5 {[%clk 0:00:59]} 43. Bf6 {[%clk 0:00:37]}  Bf4 {[%clk 0:00:55]} 44. Kg4 {[%clk 0:00:36]}  Kd6 {[%clk 0:00:46]} 45. Re1 {[%clk 0:00:33]}  Nc7 {[%clk 0:00:42]} 46. Bxg5 {[%clk 0:00:33]}  Be5 {[%clk 0:00:42]} 47. f4 {[%clk 0:00:32]}  Bc3 {[%clk 0:00:41]} 48. Re2 {[%clk 0:00:31]}  Ne6 {[%clk 0:00:39]} 49. Bxh4 {[%clk 0:00:31]}  Nd4 {[%clk 0:00:39]} 50. Re8 {[%clk 0:00:30]}  Ne6 {[%clk 0:00:36]} 51. f5 {[%clk 0:00:28]}  Nc7 {[%clk 0:00:35]} 52. Re2 {[%clk 0:00:27]}  Nd5 {[%clk 0:00:35]} 53. Bg3+ {[%clk 0:00:26]}  Kc5 {[%clk 0:00:35]} 54. Be5 {[%clk 0:00:24]}  Ba5 {[%clk 0:00:32]} 55. Rc2+ {[%clk 0:00:24]}  Kb5 {[%clk 0:00:30]} 56. Re2 {[%clk 0:00:21]}  Bd8 {[%clk 0:00:28]} 57. h4 {[%clk 0:00:21]}  Kc6 {[%clk 0:00:28]} 58. h5 {[%clk 0:00:21]}  Bf6 {[%clk 0:00:29]} 59. Bxf6 {[%clk 0:00:20]}  Nxf6+ {[%clk 0:00:30]} 60. Kg5 {[%clk 0:00:21]} 1-0


[Site "https://www.chess.com"]

[Event "Titled Tuesday Blitz June 28 Early 2022"]
[White "Fernandez Siles, Luis"]
[Black "Janaszak, Dawid"]
[WhiteFideId "2209420"]
[BlackFideId "1119206"]
[WhiteElo "2211"]
[BlackElo "2199"]
[Result "0-1"]
[Round "03"]
[TimeControl "180+1"]
[Date "2022.06.28"]
[WhiteClock "0:00:49"]
[BlackClock "0:01:54"]

1. e4 {[%clk 0:03:00]}  c5 {[%clk 0:02:59]} 2. Nf3 {[%clk 0:03:00]}  Nc6 {[%clk 0:02:59]} 3. c3 {[%clk 0:02:59]}  e5 {[%clk 0:02:58]} 4. Bc4 {[%clk 0:02:56]}  Nf6 {[%clk 0:02:58]} 5. d3 {[%clk 0:02:38]}  Be7 {[%clk 0:02:58]} 6. O-O {[%clk 0:02:36]}  O-O {[%clk 0:02:58]} 7. Re1 {[%clk 0:02:36]}  d6 {[%clk 0:02:58]} 8. Bb3 {[%clk 0:02:32]}  Kh8 {[%clk 0:02:55]} 9. h3 {[%clk 0:02:09]}  Ng8 {[%clk 0:02:53]} 10. d4 {[%clk 0:02:09]}  c4 {[%clk 0:02:48]} 11. Bxc4 {[%clk 0:01:57]}  Bf6 {[%clk 0:02:31]} 12. dxe5 {[%clk 0:01:54]}  Nxe5 {[%clk 0:02:31]} 13. Nxe5 {[%clk 0:01:50]}  Bxe5 {[%clk 0:02:32]} 14. f4 {[%clk 0:01:42]}  Bf6 {[%clk 0:02:32]} 15. Be3 {[%clk 0:01:41]}  Ne7 {[%clk 0:02:27]} 16. Bb3 {[%clk 0:01:34]}  Be6 {[%clk 0:02:27]} 17. Nd2 {[%clk 0:01:33]}  d5 {[%clk 0:02:26]} 18. e5 {[%clk 0:01:31]}  Bh4 {[%clk 0:02:25]} 19. Re2 {[%clk 0:01:25]}  Nf5 {[%clk 0:02:24]} 20. Bc5 {[%clk 0:01:19]}  Rg8 {[%clk 0:02:20]} 21. Nf3 {[%clk 0:01:18]}  Bg3 {[%clk 0:02:19]} 22. Qd2 {[%clk 0:01:07]}  h6 {[%clk 0:02:10]} 23. Rd1 {[%clk 0:01:07]}  Qc7 {[%clk 0:02:04]} 24. Bd6 {[%clk 0:00:59]}  Nxd6 {[%clk 0:02:01]} 25. exd6 {[%clk 0:00:59]}  Qxd6 {[%clk 0:02:00]} 26. Bxd5 {[%clk 0:00:59]}  Bxf4 {[%clk 0:01:59]} 27. Qd4 {[%clk 0:00:50]}  Bxd5 {[%clk 0:01:55]} 28. Qxd5 {[%clk 0:00:50]}  Qb6+ {[%clk 0:01:54]} 29. Qd4 {[%clk 0:00:49]}  Rad8 {[%clk 0:01:54]} 0-1


[Site "https://www.chess.com"]

[Event "Titled Tuesday Blitz June 28 Early 2022"]
[White "Flynn, Jacob"]
[Black "Al-Tarboush, Ward"]
[WhiteFideId "2509393"]
[BlackFideId "7601450"]
[WhiteElo "1896"]
[BlackElo "2249"]
[Result "0-1"]
[Round "03"]
[TimeControl "180+1"]
[Date "2022.06.28"]
[WhiteClock "0:00:11"]
[BlackClock "0:01:10"]

1. d4 {[%clk 0:02:53]}  d5 {[%clk 0:02:59]} 2. c4 {[%clk 0:02:54]}  c6 {[%clk 0:02:59]} 3. Nf3 {[%clk 0:02:54]}  Nf6 {[%clk 0:02:59]} 4. Qc2 {[%clk 0:02:54]}  dxc4 {[%clk 0:02:58]} 5. Qxc4 {[%clk 0:02:54]}  Bf5 {[%clk 0:02:58]} 6. g3 {[%clk 0:02:54]}  e6 {[%clk 0:02:57]} 7. Bg2 {[%clk 0:02:54]}  Nbd7 {[%clk 0:02:57]} 8. O-O {[%clk 0:02:55]}  Be7 {[%clk 0:02:57]} 9. Nc3 {[%clk 0:02:55]}  O-O {[%clk 0:02:57]} 10. Re1 {[%clk 0:02:54]}  Ne4 {[%clk 0:02:57]} 11. Nd2 {[%clk 0:02:47]}  Nxd2 {[%clk 0:02:56]} 12. Bxd2 {[%clk 0:02:46]}  e5 {[%clk 0:02:57]} 13. e4 {[%clk 0:02:41]}  Bg6 {[%clk 0:02:56]} 14. d5 {[%clk 0:02:41]}  Nb6 {[%clk 0:02:54]} 15. Qb3 {[%clk 0:02:39]}  Bc5 {[%clk 0:02:42]} 16. Be3 {[%clk 0:02:35]}  Bd4 {[%clk 0:02:38]} 17. Bxd4 {[%clk 0:02:15]}  exd4 {[%clk 0:02:37]} 18. Ne2 {[%clk 0:02:16]}  cxd5 {[%clk 0:02:34]} 19. exd5 {[%clk 0:02:15]}  d3 {[%clk 0:02:34]} 20. Nf4 {[%clk 0:02:15]}  Qd6 {[%clk 0:02:30]} 21. Nxg6 {[%clk 0:01:57]}  hxg6 {[%clk 0:02:27]} 22. Qxd3 {[%clk 0:01:54]}  Rad8 {[%clk 0:02:27]} 23. Rad1 {[%clk 0:01:53]}  Na4 {[%clk 0:02:26]} 24. Qd2 {[%clk 0:01:48]}  Rd7 {[%clk 0:02:10]} 25. h4 {[%clk 0:01:47]}  Rfd8 {[%clk 0:02:08]} 26. Qd4 {[%clk 0:01:39]}  Nb6 {[%clk 0:02:05]} 27. Bh3 {[%clk 0:01:22]}  f5 {[%clk 0:01:56]} 28. Bf1 {[%clk 0:00:49]}  Kh7 {[%clk 0:01:48]} 29. Bb5 {[%clk 0:00:39]}  Rc7 {[%clk 0:01:43]} 30. Re5 {[%clk 0:00:28]}  Rc5 {[%clk 0:01:42]} 31. Bf1 {[%clk 0:00:21]}  Rxd5 {[%clk 0:01:40]} 32. Rxd5 {[%clk 0:00:21]}  Qxd5 {[%clk 0:01:40]} 33. Qxd5 {[%clk 0:00:21]}  Rxd5 {[%clk 0:01:41]} 34. Rxd5 {[%clk 0:00:21]}  Nxd5 {[%clk 0:01:42]} 35. Bg2 {[%clk 0:00:22]}  Nb4 {[%clk 0:01:42]} 36. Bxb7 {[%clk 0:00:19]}  Nxa2 {[%clk 0:01:42]} 37. Kf1 {[%clk 0:00:15]}  Nb4 {[%clk 0:01:41]} 38. Ke2 {[%clk 0:00:16]}  Kg8 {[%clk 0:01:38]} 39. Kd2 {[%clk 0:00:16]}  Kf7 {[%clk 0:01:31]} 40. Kc3 {[%clk 0:00:16]}  Na2+ {[%clk 0:01:29]} 41. Kc4 {[%clk 0:00:16]}  Ke6 {[%clk 0:01:23]} 42. b4 {[%clk 0:00:14]}  Kd6 {[%clk 0:01:21]} 43. b5 {[%clk 0:00:11]}  Nc1 {[%clk 0:01:18]} 44. Bd5 {[%clk 0:00:10]}  Nd3 {[%clk 0:01:11]} 45. Bf7 {[%clk 0:00:10]}  Ne5+ {[%clk 0:01:10]} 46. Kd4 {[%clk 0:00:11]}  Nxf7 {[%clk 0:01:10]} 0-1


[Site "https://www.chess.com"]